fUST/lending_fUST_20240901
["ID","MTS","AMOUNT","RATE_DAILY","PERIOD"]
[336812655,1725186644875,-541.21,0.00030136,31]
[336812656,1725186644884,-1466.48,0.00030136,31]
[336812657,1725186644894,-834.53,0.00030136,31]
[336812658,1725186644903,-795.96,0.00030136,31]
[336812659,1725186644912,-500.0,0.00030136,31]
[336812660,1725186644921,-641.74,0.00030136,31]
[336812661,1725186644930,-644.56,0.00030136,31]
[336812662,1725186644940,-262.34342,0.00030136,7]
[336812663,1725186644949,-151.0,0.00030136,7]
[336812664,1725186644959,-500.0,0.00030136,31]
[336812665,1725186644968,-967.35,0.00030136,31]
[336812666,1725186644978,-500.0,0.00030136,31]
[336812667,1725186644987,-262.34342,0.00030136,7]
[336812668,1725186644997,-500.0,0.00030136,31]
[336812669,1725186645007,-1309.82,0.00030136,31]
[336812670,1725186645016,-500.0,0.00030136,31]
[336812671,1725186645026,-500.0,0.00030136,31]
[336812672,1725186645036,-500.0,0.00030136,31]
[336812673,1725186645045,-500.0,0.00030136,31]
[336812674,1725186645055,-500.0,0.00030136,31]
[336812675,1725186645064,-500.0,0.00030136,31]
[336812676,1725186645073,-500.0,0.00030136,31]
[336812677,1725186645083,-500.0,0.00030136,31]
[336812678,1725186645092,-500.0,0.00030136,31]
[336812679,1725186645102,-500.0,0.00030136,31]
[336812680,1725186645114,-500.0,0.00030136,31]
[336812681,1725186645123,-500.0,0.00030136,31]
[336812682,1725186645132,-500.0,0.00030136,31]
[336812683,1725186645142,-500.0,0.00030136,31]
[336812684,1725186645151,-500.0,0.00030136,31]
[336812685,1725186645161,-500.0,0.00030136,31]
[336812686,1725186645171,-616.76622302,0.00030136,31]
[336812687,1725186645180,-607.86,0.00030136,31]
[336812688,1725186645192,-151.0,0.00030136,7]
[336812689,1725186645202,-506.29753655,0.00030136,31]
[336812690,1725186645211,-500.0,0.00030136,31]
[336812691,1725186645220,-500.0,0.00030136,31]
[336812692,1725186645230,-151.0,0.00030136,7]
[336812693,1725186645239,-500.0,0.00030136,31]
[336812694,1725186645248,-500.0,0.00030136,31]
[336812695,1725186645260,-500.0,0.00030136,2]
[336812696,1725186645269,-528.25377139,0.00030136,31]
[336812697,1725186645279,-75.78532973,0.00030136,8]
[336812698,1725186645654,-1039.71,0.00030126,3]
[336812699,1725186645664,-37124.25467027,0.00030136,8]
[336812700,1725186645674,-2694.28,0.00030136,31]
[336812701,1725186645683,-500.0,0.00030136,31]
[336812702,1725186645693,-500.0,0.00030136,31]
[336812703,1725186645702,-2078.83,0.00030136,31]
[336812704,1725186645711,-1330.14,0.00030136,31]
[336812705,1725186645720,-500.0,0.00030136,31]
[336812706,1725186645729,-610.44,0.00030136,31]
[336812707,1725186645738,-1194.67,0.00030136,30]
[336812708,1725186645747,-5965.24,0.00030136,31]
[336812709,1725186645758,-1675.76,0.00030136,21]
[336812710,1725186645768,-657.47,0.00030136,31]
[336812711,1725186645777,-221.83276,0.00030136,7]
[336812712,1725186645787,-1233.74,0.00030136,31]
[336812713,1725186645796,-513.97692973,0.00030136,31]
[336812714,1725186645805,-221.83276,0.00030136,7]
[336812715,1725186645814,-500.0,0.00030136,31]
[336812716,1725186645824,-500.0,0.00030136,31]
[336812717,1725186645833,-500.0,0.00030136,31]
[336812718,1725186645843,-500.0,0.00030136,31]
[336812719,1725186645853,-354.90003524,0.00030136,31]
[336812720,1725186645862,-7263.07,0.00030136,31]
[336812721,1725186645871,-880.7,0.00030136,31]
[336812722,1725186645881,-500.0,0.00030136,31]
[336812723,1725186645890,-1991.74,0.00030136,31]
[336812724,1725186645900,-1368.34,0.00030136,31]
[336812725,1725186645909,-151.0,0.00030136,7]
[336812726,1725186645920,-535.26,0.00030136,31]
[336812727,1725186645929,-3764.89,0.00030136,31]
[336812728,1725186645938,-6284.47,0.00030136,31]
[336812729,1725186645947,-840.09,0.00030136,31]
[336812731,1725186645957,-216.58036957,0.00030136,31]
[336812732,1725186645967,-283.70544507,0.00030136,31]
[336812733,1725186645976,-956.75,0.00030136,31]
[336812734,1725186645985,-1091.74,0.00030136,31]
[336812735,1725186645994,-1380.78,0.00030136,31]
[336812736,1725186646004,-771.58,0.00030136,31]
[336812737,1725186646013,-500.0,0.00030136,31]
[336812738,1725186646022,-515.29,0.00030136,31]
[336812739,1725186646032,-500.0,0.00030136,31]
[336812740,1725186646041,-505.26455664,0.00030136,31]
[336812741,1725186646050,-505.31800804,0.00030136,31]
[336812742,1725186646060,-500.0,0.00030136,31]
[336812743,1725186646069,-1407.57,0.00030136,31]
[336812744,1725186646078,-15807.12,0.00030136,31]
[336812745,1725186646088,-500.0,0.00030136,31]
[336812746,1725186646097,-500.0,0.00030136,31]
[336812747,1725186646107,-796.16,0.00030136,31]
[336812748,1725186646121,-500.0,0.00030136,31]
[336812749,1725186646130,-1013.08,0.00030136,31]
[336812750,1725186646139,-500.0,0.00030136,31]
[336812751,1725186646149,-549.03876514,0.00030136,31]
[336812752,1725186646159,-3057.69,0.00030136,31]
[336812754,1725186646168,-948.6,0.00030136,31]
[336812755,1725186646177,-1310.26,0.00030136,31]
[336812757,1725186646187,-500.0,0.00030136,31]
[336812758,1725186646198,-1039.52,0.00030136,31]
[336812759,1725186646208,-500.0,0.00030136,31]
[336812760,1725186646218,-1166.5,0.00030136,31]
[336812761,1725186646228,-8391.09,0.00030136,31]
[336812762,1725186646238,-556.84,0.00030136,31]
[336812763,1725186646247,-1274.06,0.00030136,31]
[336812764,1725186646259,-500.0,0.00030136,31]
[336812765,1725186646268,-1354.87,0.00030136,31]
[336812766,1725186646278,-500.0,0.00030136,31]
[336812767,1725186646288,-234.19590966,0.00030136,31]
[336812768,1725186646297,-500.0,0.00030136,31]
[336812769,1725186646307,-727.87,0.00030136,31]
[336812770,1725186646317,-500.0,0.00030136,31]
[336812771,1725186646327,-500.0,0.00030136,31]
[336812772,1725186646336,-517.53,0.00030136,31]
[336812773,1725186646346,-500.0,0.00030136,31]
[336812774,1725186646355,-736.84,0.00030136,31]
[336812775,1725186646364,-971.07,0.00030136,31]
[336812776,1725186646374,-154.60718583,0.00030136,31]
[336812777,1725186646383,-500.0,0.00030136,31]
[336812778,1725186646393,-606.34,0.00030136,31]
[336812779,1725186646403,-500.0,0.00030136,31]
[336812780,1725186646414,-500.0,0.00030136,31]
[336812781,1725186646424,-500.0,0.00030136,31]
[336812782,1725186646434,-500.0,0.00030136,31]
[336812783,1725186646445,-2084.42,0.00030136,31]
[336812784,1725186646455,-8178.87,0.00030136,31]
[336812785,1725186646466,-887.93,0.00030136,31]
[336812786,1725186646475,-1788.78,0.00030136,31]
[336812787,1725186646486,-289.00531854,0.00030136,31]
[336812788,1725186646496,-500.0,0.00030136,31]
[336812789,1725186646507,-500.0,0.00030136,31]
[336812790,1725186646525,-4261.22,0.00030136,31]
[336812791,1725186646534,-329.72191409,0.00030136,31]
[336812812,1725187638131,-288.0135894,0.00025995,2]
[336812813,1725187638153,-300.0,0.00026907,2]
[336812814,1725187638175,-300.0,0.00026907,2]
[336812815,1725187638198,-24890.0,0.00026908,2]
[336812816,1725187638219,-3000.0,0.00026924,2]
[336812817,1725187638441,-250.0,0.00027385,2]
[336812818,1725187638466,-250.0,0.0002746,2]
[336812819,1725187638489,-250.0,0.00027535,2]
[336812820,1725187638514,-250.0,0.0002761,2]
[336812821,1725187638537,-3283.36241019,0.0002766,2]
[336812822,1725187638559,-250.0,0.00027685,2]
[336812823,1725187638588,-250.0,0.0002776,2]
[336812824,1725187638612,-250.0,0.00027835,2]
[336812825,1725187638636,-250.0,0.0002791,2]
[336812826,1725187638660,-250.0,0.00027985,2]
[336812827,1725187638683,-250.0,0.0002806,2]
[336812828,1725187638706,-250.0,0.00028136,2]
[336812829,1725187638728,-250.0,0.00028211,2]
[336812830,1725187638750,-250.0,0.00028286,2]
[336812831,1725187638773,-250.0,0.00028361,2]
[336812832,1725187638795,-250.0,0.00028436,2]
[336812833,1725187638818,-250.0,0.00028511,2]
[336812834,1725187638841,-3283.36241012,0.00028551,2]
[336812835,1725187638865,-250.0,0.00028586,2]
[336812836,1725187638890,-250.0,0.00028661,2]
[336812837,1725187638913,-250.0,0.00028736,2]
[336812838,1725187638937,-250.0,0.00028811,2]
[336812839,1725187638959,-153.0,0.00029041,2]
[336812840,1725187638982,-420.0,0.00029093,2]
[336812841,1725187639005,-811.29480552,0.00029205,2]
[336812842,1725187639028,-153.0,0.00029205,2]
[336812843,1725187639050,-153.0,0.00029205,2]
[336812844,1725187639071,-3283.36241012,0.00029443,2]
[336812845,1725187639093,-420.0,0.00029598,2]
[336812846,1725187639114,-500.0,0.00029684,120]
[336812847,1725187639137,-500.0,0.00029684,120]
[336812848,1725187639159,-518.26,0.00029684,120]
[336812849,1725187639182,-4464.76156286,0.00029907,2]
[336812850,1725187639204,-150.0,0.00029927,2]
[336812851,1725187639227,-160.3053851,0.0003,2]
[336812852,1725187639249,-2302.77017573,0.00030027,2]
[336812853,1725187639272,-2302.77017572,0.00030029,2]
[336812854,1725187639295,-2302.77017572,0.00030032,2]
[336812855,1725187639317,-2302.77017572,0.00030034,2]
[336812856,1725187639338,-2302.77017572,0.00030036,2]
[336812857,1725187639361,-1066.13334828,0.00030037,2]
[336812858,1725187639383,-153.0,0.00030082,2]
[336812859,1725187639406,-153.0,0.00030082,2]
[336812860,1725187639428,-1000.0,0.00030111,2]
[336812861,1725187639453,-171.39,0.00030116,3]
[336812862,1725187639474,-514.2,0.00030116,3]
[336812863,1725187639497,-45786.4517098,0.00030126,4]
[336812864,1725187639520,-5087.38352331,0.00030127,4]
[336812865,1725187639546,-220.32178932,0.00030135,2]
[336812866,1725187639571,-500.0,0.00030135,2]
[336812867,1725187639596,-209.02994367,0.00030135,2]
[336812868,1725187639620,-500.0,0.00030135,2]
[336812869,1725187639643,-500.0,0.00030135,2]
[336812870,1725187639667,-500.0,0.00030135,2]
[336812871,1725187639690,-622.68737494,0.00030135,2]
[336812872,1725187639713,-500.0,0.00030135,2]
[336812873,1725187639736,-500.0,0.00030135,2]
[336812874,1725187639761,-500.0,0.00030135,2]
[336812875,1725187639783,-500.0,0.00030135,2]
[336812876,1725187639804,-560.43770131,0.00030135,2]
[336812877,1725187639830,-759.39067764,0.00030136,11]
[336812878,1725187639851,-500.0,0.00030136,31]
[336812879,1725187639872,-500.0,0.00030136,31]
[336812880,1725187639894,-503.56852955,0.00030136,31]
[336812881,1725187639917,-500.0,0.00030136,31]
[336812882,1725187639944,-500.0,0.00030136,31]
[336812883,1725187639966,-500.0,0.00030136,31]
[336812884,1725187639988,-500.0,0.00030136,31]
[336812885,1725187640012,-426.19663222,0.00030136,31]
[336812886,1725187640037,-500.0,0.00030136,31]
[336812887,1725187640058,-318.45377588,0.00030136,31]
[336812888,1725187640079,-563.68,0.00030136,31]
[336812889,1725187640101,-500.0,0.00030136,31]
[336812890,1725187640121,-500.0,0.00030136,31]
[336812891,1725187640142,-537.76895376,0.00030136,31]
[336812892,1725187640162,-500.0,0.00030136,31]
[336812893,1725187640184,-524.17276754,0.00030136,31]
[336812894,1725187640205,-500.0,0.00030136,31]
[336812895,1725187640225,-500.0,0.00030136,31]
[336812896,1725187640246,-500.0,0.00030136,31]
[336812897,1725187640268,-502.43955749,0.00030136,31]
[336812898,1725187640289,-500.0,0.00030136,31]
[336812899,1725187640313,-565.01,0.00030136,31]
[336812900,1725187640336,-500.0,0.00030136,31]
[336812901,1725187640361,-500.0,0.00030136,31]
[336812902,1725187640382,-500.0,0.00030136,31]
[336812903,1725187640405,-500.0,0.00030136,31]
[336812904,1725187640426,-500.0,0.00030136,31]
[336812905,1725187640449,-500.0,0.00030136,31]
[336812906,1725187640470,-500.0,0.00030136,31]
[336812907,1725187640492,-500.0,0.00030136,31]
[336812908,1725187640514,-753.4,0.00030136,31]
[336812909,1725187640536,-500.0,0.00030136,31]
[336812910,1725187640559,-500.0,0.00030136,31]
[336812911,1725187640582,-1039.89,0.00030136,31]
[336812912,1725187640604,-500.0,0.00030136,31]
[336812913,1725187640625,-500.0,0.00030136,31]
[336812914,1725187640646,-502.98476496,0.00030136,31]
[336812915,1725187640666,-951.55,0.00030136,14]
[336812916,1725187640687,-163.57073074,0.00030136,31]
[336812917,1725187640708,-500.0,0.00030136,31]
[336812918,1725187640729,-500.0,0.00030136,31]
[336812919,1725187640749,-500.0,0.00030136,31]
[336812920,1725187640772,-507.1311536,0.00030136,31]
[336812921,1725187640795,-500.0,0.00030136,31]
[336812922,1725187640817,-500.0,0.00030136,31]
[336812923,1725187640837,-500.0,0.00030136,31]
[336812924,1725187640861,-200.0,0.00030136,7]
[336812925,1725187640884,-824.92,0.00030136,7]
[336812926,1725187640905,-500.0,0.00030136,31]
[336812927,1725187640925,-500.0,0.00030136,31]
[336812928,1725187640945,-500.0,0.00030136,31]
[336812929,1725187640965,-500.0,0.00030136,31]
[336812930,1725187640985,-706.65,0.00030136,31]
[336812931,1725187641006,-500.0,0.00030136,31]
[336812932,1725187641027,-500.0,0.00030136,31]
[336812933,1725187641047,-500.0,0.00030136,31]
[336812934,1725187641067,-500.0,0.00030136,31]
[336812935,1725187641088,-500.0,0.00030136,31]
[336812936,1725187641107,-500.0,0.00030136,31]
[336812937,1725187641127,-500.0,0.00030136,31]
[336812938,1725187641148,-500.0,0.00030136,31]
[336812939,1725187641170,-500.0,0.00030136,31]
[336812940,1725187641190,-500.0,0.00030136,31]
[336812941,1725187641210,-500.0,0.00030136,31]
[336812942,1725187641230,-504.08787951,0.00030136,31]
[336812943,1725187641251,-500.0,0.00030136,31]
[336812944,1725187641273,-500.0,0.00030136,31]
[336812945,1725187641295,-500.0,0.00030136,31]
[336812946,1725187641317,-500.0,0.00030136,31]
[336812947,1725187641337,-500.0,0.00030136,31]
[336812948,1725187641360,-500.0,0.00030136,31]
[336812949,1725187641382,-500.0,0.00030136,31]
[336812950,1725187641405,-500.0,0.00030136,31]
[336812951,1725187641425,-500.0,0.00030136,31]
[336812952,1725187641448,-619.13,0.00030136,31]
[336812953,1725187641469,-500.0,0.00030136,31]
[336812954,1725187641490,-1000.7,0.00030136,31]
[336812955,1725187641511,-500.0,0.00030136,31]
[336812956,1725187641532,-500.0,0.00030136,31]
[336812957,1725187641553,-523.85,0.00030136,31]
[336812958,1725187641574,-500.0,0.00030136,31]
[336812959,1725187641595,-500.0,0.00030136,31]
[336812960,1725187641619,-500.0,0.00030136,31]
[336812961,1725187641641,-500.0,0.00030136,31]
[336812962,1725187641662,-500.0,0.00030136,31]
[336812963,1725187641683,-500.0,0.00030136,31]
[336812964,1725187641705,-500.0,0.00030136,31]
[336812965,1725187641725,-500.0,0.00030136,31]
[336812966,1725187641747,-503.31978551,0.00030136,31]
[336812967,1725187641770,-500.0,0.00030136,31]
[336812968,1725187641792,-563.75,0.00030136,31]
[336812969,1725187641814,-500.0,0.00030136,31]
[336812970,1725187641835,-500.0,0.00030136,31]
[336812971,1725187641857,-500.0,0.00030136,31]
[336812972,1725187641878,-500.0,0.00030136,31]
[336812973,1725187641898,-2259.89,0.00030136,31]
[336812974,1725187641919,-500.0,0.00030136,31]
[336812975,1725187641940,-500.0,0.00030136,2]
[336812976,1725187641962,-500.0,0.00030136,31]
[336812977,1725187641984,-500.0,0.00030136,31]
[336812978,1725187642005,-604.88,0.00030136,31]
[336812979,1725187642027,-500.0,0.00030136,31]
[336812980,1725187642050,-500.0,0.00030136,31]
[336812981,1725187642072,-500.0,0.00030136,31]
[336812982,1725187642093,-617.7,0.00030136,31]
[336812983,1725187642114,-1449.06,0.00030136,31]
[336812984,1725187642135,-500.0,0.00030136,31]
[336812985,1725187642158,-500.0,0.00030136,31]
[336812986,1725187642181,-630.07,0.00030136,31]
[336812987,1725187642204,-500.0,0.00030136,31]
[336812988,1725187642373,-1740.35,0.00030136,31]
[336812989,1725187642405,-500.0,0.00030136,31]
[336812990,1725187642427,-825.36,0.00030136,31]
[336812991,1725187642450,-799.75,0.00030136,31]
[336812992,1725187642471,-500.0,0.00030136,31]
[336812993,1725187642492,-723.96,0.00030136,31]
[336812994,1725187642515,-500.0,0.00030136,31]
[336812995,1725187642538,-927.04,0.00030136,31]
[336812996,1725187642559,-500.0,0.00030136,31]
[336812997,1725187642580,-916.89,0.00030136,31]
[336812998,1725187642602,-500.0,0.00030136,31]
[336812999,1725187642622,-500.0,0.00030136,31]
[336813000,1725187642644,-500.0,0.00030136,31]
[336813001,1725187642665,-500.0,0.00030136,31]
[336813002,1725187642686,-500.0,0.00030136,31]
[336813003,1725187642708,-500.0,0.00030136,31]
[336813004,1725187642729,-500.0,0.00030136,31]
[336813005,1725187642751,-500.0,0.00030136,31]
[336813006,1725187642772,-531.4484865,0.00030136,31]
[336813007,1725187642793,-504.4673534,0.00030136,31]
[336813008,1725187642815,-644.82726291,0.00030136,31]
[336813009,1725187642836,-1763.64,0.00030136,31]
[336813010,1725187642858,-1144.89,0.00030136,30]
[336813011,1725187642885,-996.2,0.00030136,31]
[336813012,1725187642908,-500.0,0.00030136,31]
[336813013,1725187642930,-1908.76,0.00030136,31]
[336813014,1725187642953,-675.13,0.00030136,31]
[336813015,1725187642975,-500.0,0.00030136,31]
[336813016,1725187642998,-1348.92,0.00030136,31]
[336813017,1725187643021,-500.0,0.00030136,31]
[336813018,1725187643043,-500.0,0.00030136,31]
[336813019,1725187643065,-970.87,0.00030136,31]
[336813020,1725187643086,-759.85,0.00030136,31]
[336813021,1725187643108,-500.0,0.00030136,31]
[336813022,1725187643129,-500.0,0.00030136,31]
[336813023,1725187643150,-657.15,0.00030136,31]
[336813024,1725187643171,-500.0,0.00030136,31]
[336813025,1725187643192,-500.0,0.00030136,31]
[336813026,1725187643213,-500.0,0.00030136,31]
[336813027,1725187643233,-500.0,0.00030136,2]
[336813028,1725187643254,-500.0,0.00030136,31]
[336813029,1725187643281,-549.44,0.00030136,31]
[336813030,1725187643301,-500.0,0.00030136,31]
[336813031,1725187643323,-500.0,0.00030136,31]
[336813032,1725187643344,-500.0,0.00030136,31]
[336813033,1725187643371,-500.0,0.00030136,31]
[336813034,1725187643392,-500.0,0.00030136,31]
[336813035,1725187643416,-500.0,0.00030136,31]
[336813036,1725187643440,-500.0,0.00030136,31]
[336813037,1725187643462,-500.0,0.00030136,31]
[336813038,1725187643483,-500.0,0.00030136,31]
[336813039,1725187643504,-500.0,0.00030136,31]
[336813040,1725187643533,-500.0,0.00030136,31]
[336813041,1725187643554,-1326.5,0.00030136,31]
[336813042,1725187643584,-500.0,0.00030136,30]
[336813043,1725187643606,-2338.25,0.00030136,31]
[336813044,1725187643632,-500.0,0.00030136,31]
[336813045,1725187643654,-500.0,0.00030136,31]
[336813046,1725187643675,-543.87,0.00030136,31]
[336813047,1725187643695,-500.0,0.00030136,31]
[336813048,1725187643716,-500.0,0.00030136,31]
[336813049,1725187643740,-500.0,0.00030136,31]
[336813050,1725187643765,-501.94409176,0.00030136,31]
[336813051,1725187643786,-604.39,0.00030136,31]
[336813052,1725187643808,-500.0,0.00030136,31]
[336813053,1725187643831,-500.0,0.00030136,31]
[336813054,1725187643855,-500.0,0.00030136,31]
[336813055,1725187643876,-779.52,0.00030136,31]
[336813056,1725187643898,-500.0,0.00030136,31]
[336813057,1725187643918,-500.0,0.00030136,31]
[336813058,1725187643941,-500.0,0.00030136,31]
[336813059,1725187643964,-500.0,0.00030136,31]
[336813060,1725187643985,-500.0,0.00030136,31]
[336813061,1725187644008,-500.0,0.00030136,31]
[336813062,1725187644033,-500.0,0.00030136,31]
[336813063,1725187644057,-500.0,0.00030136,31]
[336813064,1725187644082,-665.63,0.00030136,31]
[336813065,1725187644107,-500.0,0.00030136,31]
[336813066,1725187644131,-500.0,0.00030136,31]
[336813067,1725187644155,-502.82497924,0.00030136,31]
[336813068,1725187644177,-500.0,0.00030136,31]
[336813069,1725187644198,-500.0,0.00030136,31]
[336813070,1725187644224,-500.0,0.00030136,31]
[336813071,1725187644249,-500.0,0.00030136,31]
[336813072,1725187644272,-500.0,0.00030136,31]
[336813073,1725187644294,-500.0,0.00030136,31]
[336813074,1725187644316,-500.0,0.00030136,31]
[336813075,1725187644338,-500.0,0.00030136,31]
[336813076,1725187644366,-1001.32,0.00030136,31]
[336813077,1725187644388,-500.0,0.00030136,31]
[336813078,1725187644410,-500.0,0.00030136,31]
[336813079,1725187644434,-500.0,0.00030136,31]
[336813080,1725187644456,-500.0,0.00030136,31]
[336813081,1725187644479,-878.75,0.00030136,31]
[336813082,1725187644500,-500.0,0.00030136,31]
[336813083,1725187644523,-500.0,0.00030136,31]
[336813084,1725187644545,-500.0,0.00030136,31]
[336813085,1725187644567,-500.0,0.00030136,31]
[336813086,1725187644591,-495.6903607,0.00030136,31]
[336813087,1725187644630,-500.0,0.00030136,31]
[336813088,1725187644653,-500.0,0.00030136,31]
[336813089,1725187644675,-500.0,0.00030136,31]
[336813090,1725187644698,-518.66,0.00030136,31]
[336813091,1725187644720,-500.0,0.00030136,31]
[336813092,1725187644743,-648.06,0.00030136,31]
[336813093,1725187644768,-500.0,0.00030136,31]
[336813094,1725187644789,-500.0,0.00030136,31]
[336813095,1725187644813,-500.0,0.00030136,31]
[336813096,1725187644834,-500.0,0.00030136,31]
[336813097,1725187644858,-500.0,0.00030136,31]
[336813098,1725187644881,-500.0,0.00030136,31]
[336813099,1725187644907,-500.0,0.00030136,31]
[336813100,1725187644930,-500.0,0.00030136,31]
[336813101,1725187644953,-500.0,0.00030136,31]
[336813102,1725187644975,-500.0,0.00030136,31]
[336813103,1725187644996,-500.0,0.00030136,31]
[336813104,1725187645019,-500.0,0.00030136,31]
[336813105,1725187645041,-500.0,0.00030136,31]
[336813106,1725187645063,-500.0,0.00030136,31]
[336813107,1725187645086,-982.98,0.00030136,31]
[336813108,1725187645107,-500.0,0.00030136,31]
[336813109,1725187645128,-366.56628054,0.00030136,31]
[336813110,1725187645149,-332.55119175,0.00030136,31]
[336813111,1725187645170,-500.0,0.00030136,31]
[336813112,1725187645191,-500.0,0.00030136,31]
[336813113,1725187645213,-500.0,0.00030136,31]
[336813114,1725187645235,-500.0,0.00030136,31]
[336813115,1725187645256,-500.0,0.00030136,31]
[336813116,1725187645277,-500.0,0.00030136,31]
[336813117,1725187645298,-500.0,0.00030136,31]
[336813118,1725187645319,-500.0,0.00030136,31]
[336813119,1725187645340,-1147.42,0.00030136,31]
[336813120,1725187645363,-500.0,0.00030136,31]
[336813121,1725187645384,-502.06823551,0.00030136,31]
[336813122,1725187645405,-500.0,0.00030136,31]
[336813123,1725187645428,-913.64,0.00030136,31]
[336813124,1725187645450,-797.96,0.00030136,31]
[336813125,1725187645471,-500.0,0.00030136,31]
[336813126,1725187645493,-998.67,0.00030136,31]
[336813127,1725187645515,-500.0,0.00030136,31]
[336813128,1725187645536,-670.01,0.00030136,31]
[336813129,1725187645557,-500.0,0.00030136,31]
[336813130,1725187645578,-552.6,0.00030136,31]
[336813131,1725187645599,-5602.07,0.00030136,31]
[336813132,1725187645620,-500.0,0.00030136,31]
[336813133,1725187645641,-224.54921184,0.00030136,31]
[336813134,1725187645661,-1000.37,0.00030136,31]
[336813135,1725187645684,-941.76,0.00030136,31]
[336813136,1725187645706,-540.93524496,0.00030136,31]
[336813137,1725187645728,-500.0,0.00030136,31]
[336813138,1725187645748,-1405.38,0.00030136,31]
[336813139,1725187645768,-500.0,0.00030136,31]
[336813140,1725187645789,-1149.03,0.00030136,31]
[336813141,1725187645809,-500.0,0.00030136,31]
[336813142,1725187645829,-500.0,0.00030136,31]
[336813143,1725187645850,-500.0,0.00030136,31]
[336813144,1725187645870,-575.89,0.00030136,31]
[336813145,1725187645892,-500.0,0.00030136,31]
[336813146,1725187645914,-500.0,0.00030136,31]
[336813147,1725187645935,-500.0,0.00030136,31]
[336813148,1725187645956,-500.0,0.00030136,31]
[336813149,1725187645978,-678.69,0.00030136,31]
[336813150,1725187645998,-500.0,0.00030136,31]
[336813151,1725187646020,-4292.48,0.00030136,31]
[336813152,1725187646041,-500.0,0.00030136,31]
[336813153,1725187646241,-333.24026108,0.00030136,31]
[336813154,1725187646265,-500.0,0.00030136,31]
[336813155,1725187646286,-500.0,0.00030136,31]
[336813156,1725187646307,-1102.16,0.00030136,31]
[336813157,1725187646330,-500.0,0.00030136,31]
[336813158,1725187646351,-634.54,0.00030136,31]
[336813159,1725187646376,-2934.79,0.00030136,31]
[336813160,1725187646398,-623.55,0.00030136,31]
[336813161,1725187646420,-1274.72,0.00030136,31]
[336813162,1725187646443,-500.0,0.00030136,31]
[336813163,1725187646464,-442.38826196,0.00030136,31]
[336813164,1725187646484,-509.7008296,0.00030136,31]
[336813165,1725187646509,-506.51235212,0.00030136,31]
[336813166,1725187646532,-500.0,0.00030136,31]
[336813167,1725187646554,-500.0,0.00030136,31]
[336813168,1725187646576,-500.0,0.00030136,31]
[336813169,1725187646598,-2200.9,0.00030136,31]
[336813170,1725187646620,-1992.21,0.00030136,31]
[336813171,1725187646641,-503.6591506,0.00030136,31]
[336813172,1725187646662,-500.0,0.00030136,31]
[336813173,1725187646684,-500.0,0.00030136,31]
[336813174,1725187646706,-500.0,0.00030136,31]
[336813175,1725187646728,-1210.26,0.00030136,31]
[336813176,1725187646750,-500.0,0.00030136,31]
[336813177,1725187646776,-4718.45,0.00030136,31]